[Event "*** Titled Tuesday Blitz"]
[Site "Chess.com"]
[Date "2018.12.04"]
[Round "2"]
[White "JordanaEmiel"]
[Black "Morshynska"]
[Result "1/2-1/2"]
[WhiteElo "2037"]
[BlackElo "2067"]
[TimeControl "180+2"]
[EndTime "13:22:02 PST"]
[Termination "Game drawn by agreement"]

1. d4 {[%clk 0:03:01.9]} 1... Nf6 {[%clk 0:03:00.4]} 2. c4 {[%clk 0:03:01.5]}
2... e6 {[%clk 0:03:01]} 3. Nc3 {[%clk 0:03:02.2]} 3... Bb4 {[%clk 0:03:01.1]}
4. Qc2 {[%clk 0:03:03.3]} 4... c5 {[%clk 0:02:59.2]} 5. dxc5 {[%clk 0:03:00.8]}
5... O-O {[%clk 0:02:58.6]} 6. Nf3 {[%clk 0:03:01.5]} 6... Bxc5 {[%clk
0:02:55.4]} 7. e3 {[%clk 0:02:57.8]} 7... b6 {[%clk 0:02:54.1]} 8. Be2 {[%clk
0:02:55.8]} 8... Bb7 {[%clk 0:02:53.7]} 9. O-O {[%clk 0:02:56]} 9... Nc6 {[%clk
0:02:54.2]} 10. a3 {[%clk 0:02:56.4]} 10... Be7 {[%clk 0:02:50]} 11. Rd1 {[%clk
0:02:54.4]} 11... Rc8 {[%clk 0:02:42.7]} 12. b3 {[%clk 0:02:52.1]} 12... Qc7
{[%clk 0:02:36.4]} 13. Bb2 {[%clk 0:02:43.4]} 13... Qb8 {[%clk 0:02:33.5]} 14.
Rac1 {[%clk 0:02:39.3]} 14... Na5 {[%clk 0:02:29.6]} 15. Nd4 {[%clk 0:02:34.7]}
15... d5 {[%clk 0:02:19.7]} 16. cxd5 {[%clk 0:02:32.1]} 16... Nxd5 {[%clk
0:02:19]} 17. b4 {[%clk 0:02:27.4]} 17... Nc4 {[%clk 0:02:07.5]} 18. Bxc4 {[%clk
0:02:26.3]} 18... Rxc4 {[%clk 0:02:09.4]} 19. Qb3 {[%clk 0:02:24.9]} 19... Rfc8
{[%clk 0:01:55.3]} 20. Nxd5 {[%clk 0:02:19.3]} 20... Bxd5 {[%clk 0:01:57.2]} 21.
Rxc4 {[%clk 0:02:17.1]} 21... Bxc4 {[%clk 0:01:51.2]} 22. Qc2 {[%clk 0:02:04.9]}
22... Bd6 {[%clk 0:01:29.4]} 23. h3 {[%clk 0:01:58.7]} 23... Qb7 {[%clk
0:01:11.7]} 24. Rc1 {[%clk 0:01:54.9]} 24... Bb8 {[%clk 0:00:37.6]} 25. Qc3
{[%clk 0:01:43.9]} 25... Be5 {[%clk 0:00:32.2]} 26. Qd2 {[%clk 0:01:35.5]} 26...
b5 {[%clk 0:00:21.4]} 27. Nf3 {[%clk 0:01:28.7]} 27... Bxb2 {[%clk 0:00:14.1]}
28. Qxb2 {[%clk 0:01:30.6]} 28... Bd5 {[%clk 0:00:12.5]} 29. Ne1 {[%clk
0:01:28]} 29... a6 {[%clk 0:00:09.6]} 30. f3 {[%clk 0:01:21.2]} 30... h6 {[%clk
0:00:08.7]} 31. e4 {[%clk 0:01:21.4]} 31... Rxc1 {[%clk 0:00:07.3]} 32. Qxc1
{[%clk 0:01:21.8]} 32... Bc4 {[%clk 0:00:09.2]} 33. Qd2 {[%clk 0:01:17.8]} 33...
Qb6+ {[%clk 0:00:08.5]} 34. Kh2 {[%clk 0:01:13.6]} 34... Kh7 {[%clk 0:00:10.1]}
35. Nc2 {[%clk 0:01:13.4]} 35... e5 {[%clk 0:00:10.7]} 36. Ne3 {[%clk
0:01:13.7]} 36... Qd4 {[%clk 0:00:10.5]} 37. Qc1 {[%clk 0:01:03.5]} 37... g6
{[%clk 0:00:10.5]} 38. Kg3 {[%clk 0:01:03.4]} 38... h5 {[%clk 0:00:11]} 39. h4
{[%clk 0:01:02.6]} 39... Qd3 {[%clk 0:00:12]} 1/2-1/2

[Event "*** Titled Tuesday Blitz"]
[Site "Chess.com"]
[Date "2018.12.04"]
[Round "2"]
[White "chidori_boruto"]
[Black "penguingm1"]
[Result "0-1"]
[WhiteElo "2572"]
[BlackElo "2776"]
[TimeControl "180+2"]
[EndTime "13:22:06 PST"]
[Termination "penguingm1 won on time"]

1. d4 {[%clk 0:03:01.9]} 1... d5 {[%clk 0:02:58.1]} 2. Nf3 {[%clk 0:03:02.9]}
2... e6 {[%clk 0:02:58.4]} 3. c4 {[%clk 0:02:58.2]} 3... Nf6 {[%clk 0:02:57.5]}
4. Nc3 {[%clk 0:02:59]} 4... Be7 {[%clk 0:02:58.7]} 5. Bg5 {[%clk 0:02:57.3]}
5... h6 {[%clk 0:02:59.8]} 6. Bxf6 {[%clk 0:02:57.7]} 6... Bxf6 {[%clk
0:03:01.7]} 7. e3 {[%clk 0:02:58.7]} 7... O-O {[%clk 0:02:58.8]} 8. Rc1 {[%clk
0:02:59.5]} 8... c6 {[%clk 0:02:58.4]} 9. Be2 {[%clk 0:02:59.6]} 9... Nd7 {[%clk
0:02:59.3]} 10. O-O {[%clk 0:03:00.5]} 10... Qe7 {[%clk 0:03:00.7]} 11. Qc2
{[%clk 0:02:59.7]} 11... dxc4 {[%clk 0:03:00]} 12. Bxc4 {[%clk 0:03:00.2]} 12...
e5 {[%clk 0:03:01.6]} 13. Rfd1 {[%clk 0:02:59.2]} 13... exd4 {[%clk 0:03:00]}
14. Nxd4 {[%clk 0:02:58.9]} 14... Ne5 {[%clk 0:03:00.7]} 15. Be2 {[%clk
0:02:59]} 15... Rd8 {[%clk 0:03:01.6]} 16. h3 {[%clk 0:02:57.7]} 16... g6 {[%clk
0:02:51.8]} 17. a3 {[%clk 0:02:57.8]} 17... Bg7 {[%clk 0:02:53.1]} 18. Na4
{[%clk 0:02:48.8]} 18... Bd7 {[%clk 0:02:28]} 19. Nc5 {[%clk 0:02:35.9]} 19...
Be8 {[%clk 0:02:26.8]} 20. Qb3 {[%clk 0:02:35.3]} 20... b6 {[%clk 0:02:26.4]}
21. Ne4 {[%clk 0:02:23.5]} 21... c5 {[%clk 0:02:26.9]} 22. Nf3 {[%clk
0:02:18.5]} 22... Bc6 {[%clk 0:02:23.6]} 23. Nxe5 {[%clk 0:02:11.6]} 23... Qxe5
{[%clk 0:02:25.5]} 24. Nc3 {[%clk 0:02:11.7]} 24... Qg5 {[%clk 0:02:22.4]} 25.
Bf1 {[%clk 0:02:08.2]} 25... h5 {[%clk 0:02:02.8]} 26. e4 {[%clk 0:01:57.2]}
26... h4 {[%clk 0:01:32.8]} 27. Bc4 {[%clk 0:01:55.1]} 27... Qf4 {[%clk
0:01:30.4]} 28. Bd5 {[%clk 0:01:53.4]} 28... Bxd5 {[%clk 0:01:20.9]} 29. exd5
{[%clk 0:01:52.2]} 29... Be5 {[%clk 0:01:18.1]} 30. Kf1 {[%clk 0:01:41.5]} 30...
Bd4 {[%clk 0:01:12.3]} 31. Rc2 {[%clk 0:01:40.5]} 31... Qh2 {[%clk 0:01:13.6]}
32. Ne2 {[%clk 0:01:35.1]} 32... Qh1+ {[%clk 0:01:09.5]} 33. Ng1 {[%clk
0:01:35.9]} 33... Be5 {[%clk 0:01:09.7]} 34. g3 {[%clk 0:01:11.8]} 34... hxg3
{[%clk 0:01:01.5]} 35. fxg3 {[%clk 0:01:13.7]} 35... Bd4 {[%clk 0:01:00.1]} 36.
Rg2 {[%clk 0:00:34.4]} 36... Rd6 {[%clk 0:01:00]} 37. Rd3 {[%clk 0:00:29.1]}
37... Bxg1 {[%clk 0:00:49.9]} 38. Rxg1 {[%clk 0:00:26.6]} 38... Rf6+ {[%clk
0:00:51.1]} 0-1

[Event "*** Titled Tuesday Blitz"]
[Site "Chess.com"]
[Date "2018.12.04"]
[Round "2"]
[White "LyonBeast"]
[Black "nubair1198"]
[Result "1-0"]
[WhiteElo "2915"]
[BlackElo "2622"]
[TimeControl "180+2"]
[EndTime "13:22:10 PST"]
[Termination "LyonBeast won by checkmate"]

1. e4 {[%clk 0:03:01.9]} 1... c6 {[%clk 0:03:01.4]} 2. Nf3 {[%clk 0:03:02]} 2...
d5 {[%clk 0:03:03.3]} 3. Nc3 {[%clk 0:03:03.1]} 3... Nf6 {[%clk 0:03:02.9]} 4.
e5 {[%clk 0:03:03.6]} 4... Ne4 {[%clk 0:03:04.1]} 5. Ne2 {[%clk 0:03:04.8]} 5...
Qb6 {[%clk 0:03:03]} 6. d4 {[%clk 0:03:05.3]} 6... e6 {[%clk 0:03:01.3]} 7. Nfg1
{[%clk 0:03:05.2]} 7... f6 {[%clk 0:03:02.2]} 8. f3 {[%clk 0:03:06]} 8... Ng5
{[%clk 0:02:59.8]} 9. exf6 {[%clk 0:03:07.4]} 9... gxf6 {[%clk 0:03:00.2]} 10.
f4 {[%clk 0:03:08.7]} 10... Ne4 {[%clk 0:03:00.7]} 11. Ng3 {[%clk 0:03:08.3]}
11... Bd7 {[%clk 0:02:36.4]} 12. Nxe4 {[%clk 0:03:07.6]} 12... dxe4 {[%clk
0:02:38.3]} 13. Bc4 {[%clk 0:03:07.2]} 13... Qb4+ {[%clk 0:02:21.3]} 14. c3
{[%clk 0:03:07.3]} 14... Qxc4 {[%clk 0:02:22.7]} 15. Qh5+ {[%clk 0:03:07.3]}
15... Kd8 {[%clk 0:02:21.6]} 16. Ne2 {[%clk 0:03:09.2]} 16... c5 {[%clk
0:01:47]} 17. Be3 {[%clk 0:03:04.5]} 17... Bb5 {[%clk 0:01:43.1]} 18. Ng3 {[%clk
0:03:03]} 18... Qd3 {[%clk 0:01:42.9]} 19. Nf1 {[%clk 0:02:56.8]} 19... Qc2
{[%clk 0:01:24.5]} 20. Nd2 {[%clk 0:02:30.3]} 20... Nc6 {[%clk 0:01:16.2]} 21.
dxc5 {[%clk 0:02:22.4]} 21... Kc7 {[%clk 0:01:01.1]} 22. a4 {[%clk 0:02:03.1]}
22... Ba6 {[%clk 0:00:56.2]} 23. Qf7+ {[%clk 0:01:22.8]} 23... Be7 {[%clk
0:00:56.9]} 24. Qxe6 {[%clk 0:01:23.6]} 24... Qd3 {[%clk 0:00:57.5]} 25. O-O-O
{[%clk 0:01:13.5]} 25... Qxe3 {[%clk 0:00:58.5]} 26. Rhe1 {[%clk 0:01:14.2]}
26... Qxf4 {[%clk 0:00:46.3]} 27. Rxe4 {[%clk 0:01:14.7]} 27... Qg5 {[%clk
0:00:47.4]} 28. b4 {[%clk 0:01:14.2]} 28... Bd3 {[%clk 0:00:47.6]} 29. h4 {[%clk
0:01:01.1]} 29... Qg8 {[%clk 0:00:46]} 30. Qxe7+ {[%clk 0:00:47.3]} 30... Nxe7
{[%clk 0:00:45.9]} 31. Rxe7+ {[%clk 0:00:49.2]} 31... Kc6 {[%clk 0:00:47.4]} 32.
Nf3 {[%clk 0:00:50.1]} 32... Rd8 {[%clk 0:00:43.4]} 33. Rde1 {[%clk 0:00:47.3]}
33... Bf5 {[%clk 0:00:42.9]} 34. g4 {[%clk 0:00:40.3]} 34... Qxg4 {[%clk
0:00:34.2]} 35. R1e3 {[%clk 0:00:39.7]} 35... Qc4 {[%clk 0:00:29.5]} 36. b5+
{[%clk 0:00:34]} 36... Kd5 {[%clk 0:00:25.7]} 37. R3e5+ {[%clk 0:00:35]} 37...
fxe5 {[%clk 0:00:18]} 38. Rxe5# {[%clk 0:00:36.9]} 1-0

[Event "*** Titled Tuesday Blitz"]
[Site "Chess.com"]
[Date "2018.12.04"]
[Round "2"]
[White "eCztery"]
[Black "SCIM"]
[Result "0-1"]
[WhiteElo "2250"]
[BlackElo "2429"]
[TimeControl "180+2"]
[EndTime "13:22:10 PST"]
[Termination "SCIM won by checkmate"]

1. e4 {[%clk 0:03:01.9]} 1... c5 {[%clk 0:02:58.5]} 2. Nf3 {[%clk 0:03:02.5]}
2... e6 {[%clk 0:03:00]} 3. d4 {[%clk 0:03:03.1]} 3... cxd4 {[%clk 0:03:01.5]}
4. Nxd4 {[%clk 0:03:03.3]} 4... Nc6 {[%clk 0:03:03]} 5. Nc3 {[%clk 0:03:03.3]}
5... Qc7 {[%clk 0:03:03.7]} 6. g3 {[%clk 0:03:04.2]} 6... Nf6 {[%clk 0:03:03.7]}
7. Bg2 {[%clk 0:03:05.6]} 7... a6 {[%clk 0:03:03.6]} 8. O-O {[%clk 0:03:07]}
8... h5 {[%clk 0:03:03.6]} 9. Nxc6 {[%clk 0:03:03.4]} 9... dxc6 {[%clk
0:02:33.8]} 10. e5 {[%clk 0:03:01.7]} 10... Qxe5 {[%clk 0:02:26]} 11. Re1 {[%clk
0:02:59.1]} 11... Qa5 {[%clk 0:02:25.1]} 12. Bd2 {[%clk 0:02:41.4]} 12... Be7
{[%clk 0:02:09.9]} 13. Nd5 {[%clk 0:02:38.2]} 13... Qd8 {[%clk 0:02:09.4]} 14.
Nxe7 {[%clk 0:02:30.8]} 14... Qxe7 {[%clk 0:02:09.9]} 15. Bc3 {[%clk 0:02:29.2]}
15... O-O {[%clk 0:02:07.4]} 16. Bxf6 {[%clk 0:02:19.2]} 16... Qxf6 {[%clk
0:02:06.2]} 17. Qxh5 {[%clk 0:02:20.8]} 17... Qxb2 {[%clk 0:02:03.8]} 18. Rab1
{[%clk 0:02:21.8]} 18... Qf6 {[%clk 0:01:58.9]} 19. Re4 {[%clk 0:02:14]} 19...
g6 {[%clk 0:01:56.1]} 20. Qh6 {[%clk 0:02:10.4]} 20... e5 {[%clk 0:01:52.4]} 21.
Rbe1 {[%clk 0:01:58.3]} 21... Qg7 {[%clk 0:01:44.7]} 22. Qe3 {[%clk 0:01:45.4]}
22... f6 {[%clk 0:01:44.7]} 23. Rh4 {[%clk 0:01:37.9]} 23... g5 {[%clk
0:01:37.3]} 24. Rb4 {[%clk 0:01:32.6]} 24... a5 {[%clk 0:01:29.1]} 25. Rc4
{[%clk 0:00:58.9]} 25... Be6 {[%clk 0:01:28.3]} 26. Rc5 {[%clk 0:00:57.4]} 26...
Bxa2 {[%clk 0:01:25.6]} 27. c4 {[%clk 0:00:57.1]} 27... a4 {[%clk 0:01:21.3]}
28. f4 {[%clk 0:00:47]} 28... exf4 {[%clk 0:01:18.7]} 29. gxf4 {[%clk
0:00:46.2]} 29... gxf4 {[%clk 0:01:07]} 30. Qe6+ {[%clk 0:00:43.1]} 30... Rf7
{[%clk 0:00:55.9]} 31. Kh1 {[%clk 0:00:28.4]} 31... a3 {[%clk 0:00:43.1]} 32.
Rg1 {[%clk 0:00:21.2]} 32... Bb3 {[%clk 0:00:41.9]} 33. Qe1 {[%clk 0:00:20.8]}
33... a2 {[%clk 0:00:33.7]} 34. Qa1 {[%clk 0:00:22.2]} 34... Bc2 {[%clk
0:00:28.2]} 35. Bd5 {[%clk 0:00:23]} 35... cxd5 {[%clk 0:00:24.6]} 36. Rxg7+
{[%clk 0:00:23.1]} 36... Rxg7 {[%clk 0:00:25.4]} 37. cxd5 {[%clk 0:00:24.2]}
37... Be4# {[%clk 0:00:25.3]} 0-1

[Event "*** Titled Tuesday Blitz"]
[Site "Chess.com"]
[Date "2018.12.04"]
[Round "2"]
[White "Albertu"]
[Black "MattyDPerrine"]
[Result "0-1"]
[WhiteElo "2387"]
[BlackElo "2422"]
[TimeControl "180+2"]
[EndTime "13:22:11 PST"]
[Termination "MattyDPerrine won by checkmate"]

1. e4 {[%clk 0:03:01.9]} 1... c5 {[%clk 0:02:59.9]} 2. Nf3 {[%clk 0:03:02.8]}
2... e6 {[%clk 0:03:00.7]} 3. d4 {[%clk 0:03:04.3]} 3... cxd4 {[%clk 0:03:01.6]}
4. Nxd4 {[%clk 0:03:06.2]} 4... Nc6 {[%clk 0:02:59.5]} 5. Nc3 {[%clk 0:03:04.3]}
5... Qc7 {[%clk 0:03:00.7]} 6. g3 {[%clk 0:03:02.3]} 6... a6 {[%clk 0:02:52.9]}
7. Bg2 {[%clk 0:03:02.3]} 7... Nf6 {[%clk 0:02:54]} 8. O-O {[%clk 0:03:02.4]}
8... d6 {[%clk 0:02:54.8]} 9. Be3 {[%clk 0:02:52.5]} 9... Ne5 {[%clk 0:02:53.4]}
10. Qe2 {[%clk 0:02:27.4]} 10... Be7 {[%clk 0:02:18]} 11. Rad1 {[%clk
0:02:25.5]} 11... O-O {[%clk 0:02:17.7]} 12. a4 {[%clk 0:02:24.3]} 12... Bd7
{[%clk 0:02:13.3]} 13. Bc1 {[%clk 0:02:16]} 13... Rac8 {[%clk 0:02:12.4]} 14. f4
{[%clk 0:02:10.3]} 14... Nc4 {[%clk 0:02:12.7]} 15. g4 {[%clk 0:02:00.4]} 15...
Qb6 {[%clk 0:02:07.4]} 16. g5 {[%clk 0:01:40.4]} 16... Ne8 {[%clk 0:01:15.9]}
17. b3 {[%clk 0:01:38.1]} 17... Na5 {[%clk 0:01:12.1]} 18. Bb2 {[%clk
0:01:16.8]} 18... Nc6 {[%clk 0:01:12.4]} 19. Qf2 {[%clk 0:00:56.4]} 19... Nxd4
{[%clk 0:01:08.5]} 20. Rxd4 {[%clk 0:00:58.3]} 20... d5 {[%clk 0:01:03.1]} 21.
exd5 {[%clk 0:00:38.7]} 21... Bc5 {[%clk 0:01:03.9]} 22. Ne4 {[%clk 0:00:39.9]}
22... Bxd4 {[%clk 0:01:04.3]} 23. Bxd4 {[%clk 0:00:41.8]} 23... Qc7 {[%clk
0:01:05.8]} 24. c4 {[%clk 0:00:20]} 24... exd5 {[%clk 0:01:01.2]} 25. cxd5
{[%clk 0:00:21.9]} 25... Nd6 {[%clk 0:00:49.6]} 26. Ng3 {[%clk 0:00:21]} 26...
Nf5 {[%clk 0:00:47.5]} 27. Be5 {[%clk 0:00:14.7]} 27... Qc2 {[%clk 0:00:42.7]}
28. Qb6 {[%clk 0:00:13.8]} 28... Nxg3 {[%clk 0:00:20.1]} 29. hxg3 {[%clk
0:00:14.7]} 29... Qd3 {[%clk 0:00:21.3]} 30. Kh2 {[%clk 0:00:14.3]} 30... Rc2
{[%clk 0:00:21.1]} 31. Rf2 {[%clk 0:00:14.2]} 31... Rfc8 {[%clk 0:00:19.2]} 32.
d6 {[%clk 0:00:10.8]} 32... Rxf2 {[%clk 0:00:18.5]} 33. Qxf2 {[%clk 0:00:12.3]}
33... Rc2 {[%clk 0:00:19.2]} 34. Qg1 {[%clk 0:00:13.9]} 34... Bc6 {[%clk
0:00:20.1]} 35. Kh3 {[%clk 0:00:15]} 35... Rxg2 {[%clk 0:00:20.9]} 36. Qb6
{[%clk 0:00:15.3]} 36... Qxg3# {[%clk 0:00:21.9]} 0-1

[Event "*** Titled Tuesday Blitz"]
[Site "Chess.com"]
[Date "2018.12.04"]
[Round "2"]
[White "armago"]
[Black "julinha97"]
[Result "1-0"]
[WhiteElo "2015"]
[BlackElo "2117"]
[TimeControl "180+2"]
[EndTime "13:22:11 PST"]
[Termination "armago won on time"]

1. d4 {[%clk 0:03:01.9]} 1... Nf6 {[%clk 0:03:00.1]} 2. c4 {[%clk 0:03:02.3]}
2... g6 {[%clk 0:02:59.9]} 3. Nc3 {[%clk 0:03:02.9]} 3... Bg7 {[%clk 0:03:01.5]}
4. e4 {[%clk 0:03:03.6]} 4... d6 {[%clk 0:03:02.6]} 5. h3 {[%clk 0:03:04.5]}
5... O-O {[%clk 0:03:03]} 6. Nf3 {[%clk 0:03:05.9]} 6... c5 {[%clk 0:03:01.3]}
7. d5 {[%clk 0:03:06.4]} 7... e6 {[%clk 0:03:01.7]} 8. Bg5 {[%clk 0:03:06.8]}
8... exd5 {[%clk 0:03:02.2]} 9. cxd5 {[%clk 0:03:06.4]} 9... Re8 {[%clk
0:03:01.8]} 10. Bd3 {[%clk 0:03:06.2]} 10... a6 {[%clk 0:02:33.5]} 11. a4 {[%clk
0:03:03.9]} 11... Qc7 {[%clk 0:02:34]} 12. O-O {[%clk 0:03:00.8]} 12... c4
{[%clk 0:02:34.3]} 13. Bc2 {[%clk 0:03:00.3]} 13... Nbd7 {[%clk 0:02:34.5]} 14.
Re1 {[%clk 0:02:53.3]} 14... Nc5 {[%clk 0:02:22.9]} 15. Qd2 {[%clk 0:02:51]}
15... b6 {[%clk 0:02:13]} 16. e5 {[%clk 0:02:25.5]} 16... dxe5 {[%clk
0:02:09.9]} 17. d6 {[%clk 0:02:26.3]} 17... Qc6 {[%clk 0:01:44.2]} 18. Nxe5
{[%clk 0:02:25.8]} 18... Rxe5 {[%clk 0:01:45.3]} 19. Rxe5 {[%clk 0:02:25.4]}
19... Bb7 {[%clk 0:01:46.7]} 20. f3 {[%clk 0:02:21.2]} 20... Nh5 {[%clk
0:01:25.6]} 21. Ree1 {[%clk 0:02:02.5]} 21... f6 {[%clk 0:00:51.4]} 22. Bh4
{[%clk 0:01:52]} 22... Rd8 {[%clk 0:00:50]} 23. Rad1 {[%clk 0:01:51.7]} 23... g5
{[%clk 0:00:47.9]} 24. Bf2 {[%clk 0:01:51.3]} 24... Nf4 {[%clk 0:00:48.5]} 25.
Ne4 {[%clk 0:01:43.2]} 25... Nce6 {[%clk 0:00:26.3]} 26. a5 {[%clk 0:01:31.2]}
26... bxa5 {[%clk 0:00:24.2]} 27. Qxa5 {[%clk 0:01:30.9]} 27... f5 {[%clk
0:00:25.7]} 28. Nxg5 {[%clk 0:01:28.9]} 28... Rxd6 {[%clk 0:00:15.1]} 29. Rxd6
{[%clk 0:01:28.6]} 29... Qxd6 {[%clk 0:00:17]} 30. Rd1 {[%clk 0:01:27.1]} 30...
Ne2+ {[%clk 0:00:16.1]} 31. Kf1 {[%clk 0:01:24.6]} 31... N6d4 {[%clk 0:00:15.4]}
32. Bxf5 {[%clk 0:01:17.1]} 32... Qh2 {[%clk 0:00:12.7]} 33. Qd8+ {[%clk
0:01:16.2]} 33... Bf8 {[%clk 0:00:14]} 34. Bxd4 {[%clk 0:01:12.2]} 34... Ng3+
{[%clk 0:00:11.3]} 35. Ke1 {[%clk 0:00:51.2]} 35... Qh1+ {[%clk 0:00:09.6]} 36.
Kd2 {[%clk 0:00:51]} 36... Qxg2+ {[%clk 0:00:11]} 37. Kc1 {[%clk 0:00:50.3]}
37... Nxf5 {[%clk 0:00:11.3]} 38. Bc5 {[%clk 0:00:48.2]} 1-0

[Event "*** Titled Tuesday Blitz"]
[Site "Chess.com"]
[Date "2018.12.04"]
[Round "2"]
[White "MFguimaraes"]
[Black "Atanejhad"]
[Result "0-1"]
[WhiteElo "2363"]
[BlackElo "2260"]
[TimeControl "180+2"]
[EndTime "13:22:15 PST"]
[Termination "Atanejhad won by resignation"]

1. e4 {[%clk 0:03:00.1]} 1... c5 {[%clk 0:02:59.3]} 2. Nf3 {[%clk 0:03:01.2]}
2... d6 {[%clk 0:03:00.5]} 3. Bb5+ {[%clk 0:03:02.3]} 3... Bd7 {[%clk
0:03:00.7]} 4. a4 {[%clk 0:03:00.6]} 4... Nc6 {[%clk 0:02:53.7]} 5. O-O {[%clk
0:02:59.3]} 5... Nf6 {[%clk 0:02:54.6]} 6. Nc3 {[%clk 0:02:59.7]} 6... g6 {[%clk
0:02:51.5]} 7. Re1 {[%clk 0:02:51.7]} 7... Bg7 {[%clk 0:02:48.9]} 8. e5 {[%clk
0:02:52.9]} 8... Nxe5 {[%clk 0:02:28.1]} 9. Nxe5 {[%clk 0:02:53.3]} 9... dxe5
{[%clk 0:02:30]} 10. Rxe5 {[%clk 0:02:54.1]} 10... a6 {[%clk 0:02:25.5]} 11. Bf1
{[%clk 0:02:39]} 11... Ng4 {[%clk 0:02:09.5]} 12. Re4 {[%clk 0:02:25.2]} 12...
h5 {[%clk 0:02:05.7]} 13. d3 {[%clk 0:02:07.9]} 13... Bc6 {[%clk 0:02:01.8]} 14.
Re1 {[%clk 0:02:04]} 14... Bd4 {[%clk 0:01:56.4]} 15. Be3 {[%clk 0:01:59.2]}
15... Qd6 {[%clk 0:01:53.4]} 16. g3 {[%clk 0:01:57]} 16... Bxe3 {[%clk
0:01:26.8]} 17. fxe3 {[%clk 0:01:56.4]} 17... f5 {[%clk 0:01:28.2]} 18. Qd2
{[%clk 0:01:34.7]} 18... h4 {[%clk 0:01:20.6]} 19. Nb5 {[%clk 0:01:16.2]} 19...
axb5 {[%clk 0:00:32.9]} 20. axb5 {[%clk 0:01:16.2]} 20... Rxa1 {[%clk
0:00:34.4]} 21. Rxa1 {[%clk 0:01:16.8]} 21... Ne5 {[%clk 0:00:35.9]} 22. Qc3
{[%clk 0:00:45.2]} 22... hxg3 {[%clk 0:00:30.7]} 23. hxg3 {[%clk 0:00:28.6]}
23... Nf3+ {[%clk 0:00:28.8]} 24. Kf2 {[%clk 0:00:29.9]} 24... Rh2+ {[%clk
0:00:28.9]} 25. Bg2 {[%clk 0:00:31]} 25... Nh4 {[%clk 0:00:13.1]} 26. bxc6
{[%clk 0:00:22.6]} 26... Rxg2+ {[%clk 0:00:13.3]} 27. Kf1 {[%clk 0:00:22.3]}
27... Qxg3 {[%clk 0:00:12.9]} 28. Qh8+ {[%clk 0:00:21.6]} 28... Kf7 {[%clk
0:00:13]} 29. Qh7+ {[%clk 0:00:21.9]} 29... Kf6 {[%clk 0:00:13.2]} 30. Qh8+
{[%clk 0:00:22.6]} 30... Kg5 {[%clk 0:00:13]} 31. Qxh4+ {[%clk 0:00:11.8]} 31...
Kxh4 {[%clk 0:00:11.7]} 0-1

[Event "*** Titled Tuesday Blitz"]
[Site "Chess.com"]
[Date "2018.12.04"]
[Round "2"]
[White "PlotnikovPavel"]
[Black "champ2005"]
[Result "0-1"]
[WhiteElo "2340"]
[BlackElo "2662"]
[TimeControl "180+2"]
[EndTime "13:22:15 PST"]
[Termination "champ2005 won by checkmate"]

1. d4 {[%clk 0:03:00.7]} 1... Nf6 {[%clk 0:03:00.5]} 2. Nf3 {[%clk 0:03:00]}
2... e6 {[%clk 0:02:59.7]} 3. e3 {[%clk 0:02:56.4]} 3... b6 {[%clk 0:02:55.5]}
4. c4 {[%clk 0:02:53.4]} 4... Bb7 {[%clk 0:02:56.5]} 5. Nc3 {[%clk 0:02:54.9]}
5... Bb4 {[%clk 0:02:55.6]} 6. Qc2 {[%clk 0:02:55.1]} 6... Ne4 {[%clk
0:02:51.6]} 7. Bd2 {[%clk 0:02:55.1]} 7... Bxc3 {[%clk 0:02:50.6]} 8. Bxc3
{[%clk 0:02:55.9]} 8... O-O {[%clk 0:02:51.3]} 9. Bd3 {[%clk 0:02:57.1]} 9... f5
{[%clk 0:02:52.3]} 10. O-O-O {[%clk 0:02:41.8]} 10... d6 {[%clk 0:02:45.1]} 11.
Be1 {[%clk 0:02:38.3]} 11... c5 {[%clk 0:02:41.6]} 12. Nd2 {[%clk 0:02:33.3]}
12... Nf6 {[%clk 0:02:34.8]} 13. dxc5 {[%clk 0:02:31.9]} 13... bxc5 {[%clk
0:02:33.9]} 14. f3 {[%clk 0:02:32]} 14... Nc6 {[%clk 0:02:34.3]} 15. Nb1 {[%clk
0:02:29.1]} 15... a5 {[%clk 0:02:31.3]} 16. a3 {[%clk 0:02:29.7]} 16... Qe7
{[%clk 0:02:23.6]} 17. Nc3 {[%clk 0:02:30.9]} 17... Rfb8 {[%clk 0:02:24]} 18.
Nb5 {[%clk 0:02:31.6]} 18... Ba6 {[%clk 0:02:16.7]} 19. a4 {[%clk 0:02:31.2]}
19... Nb4 {[%clk 0:02:07.5]} 20. Bxb4 {[%clk 0:02:31]} 20... axb4 {[%clk
0:02:08.4]} 21. b3 {[%clk 0:02:30.2]} 21... Bxb5 {[%clk 0:02:08.2]} 22. cxb5
{[%clk 0:02:30.5]} 22... d5 {[%clk 0:02:09.5]} 23. e4 {[%clk 0:02:13.4]} 23...
fxe4 {[%clk 0:02:00.2]} 24. fxe4 {[%clk 0:02:14]} 24... c4 {[%clk 0:01:52.5]}
25. bxc4 {[%clk 0:02:13.6]} 25... dxc4 {[%clk 0:01:50.7]} 26. Bxc4 {[%clk
0:02:13.5]} 26... Nd7 {[%clk 0:01:42.4]} 27. Kb1 {[%clk 0:02:02.2]} 27... Rc8
{[%clk 0:01:32.3]} 28. Rc1 {[%clk 0:01:33.8]} 28... Kh8 {[%clk 0:00:59.5]} 29.
Rhd1 {[%clk 0:01:24.1]} 29... Nb6 {[%clk 0:00:55.8]} 30. Qb3 {[%clk 0:01:00.5]}
30... Nxa4 {[%clk 0:00:53.2]} 31. b6 {[%clk 0:00:50.7]} 31... Rcb8 {[%clk
0:00:34.7]} 32. Bxe6 {[%clk 0:00:37.1]} 32... Nc3+ {[%clk 0:00:29.8]} 33. Rxc3
{[%clk 0:00:37.3]} 33... bxc3 {[%clk 0:00:30.1]} 34. Bd5 {[%clk 0:00:34.5]}
34... Ra3 {[%clk 0:00:25.4]} 35. Qb5 {[%clk 0:00:35.5]} 35... Qe5 {[%clk
0:00:20.6]} 36. b7 {[%clk 0:00:30.5]} 36... c2+ {[%clk 0:00:21.6]} 37. Kxc2
{[%clk 0:00:31.4]} 37... Qc3+ {[%clk 0:00:22.7]} 38. Kb1 {[%clk 0:00:31]} 38...
Ra1# {[%clk 0:00:24.1]} 0-1